fUSD/lending_fUSD_20250522
["ID","MTS","AMOUNT","RATE_DAILY","PERIOD"]
[361930740,1747897832587,-170.44896484,0.00011973,2]
[361930741,1747897832596,-500.0,0.00011973,2]
[361930742,1747897832606,-500.0,0.00011973,2]
[361930743,1747897832615,-500.0,0.00011973,2]
[361930744,1747897832625,-500.0,0.00011973,2]
[361930745,1747897832635,-288.17669469,0.00011973,2]
[361930746,1747897832645,-500.0,0.00011973,2]
[361930747,1747897832655,-500.0,0.00011973,2]
[361930748,1747897832665,-481.99062439,0.00011973,2]
[361930749,1747897832674,-500.0,0.00011973,2]
[361930750,1747897832684,-501.55606025,0.00011973,2]
[361930751,1747897832694,-200.0,0.00011986,2]
[361930752,1747897832704,-13893.82674957,0.0001199,2]
[361930753,1747897832714,-500.0,0.0001199,2]
[361930754,1747897832724,-500.0,0.0001199,2]
[361930755,1747897832734,-500.0,0.0001199,2]
[361930756,1747897832744,-500.0,0.0001199,2]
[361930757,1747897832756,-500.0,0.0001199,2]
[361930758,1747897832766,-500.0,0.0001199,2]
[361930759,1747897832776,-500.0,0.0001199,2]
[361930760,1747897832786,-500.0,0.0001199,2]
[361930761,1747897832796,-500.0,0.0001199,2]
[361930762,1747897832807,-384.13453849,0.0001199,2]
[361930763,1747897832817,-544.14546965,0.0001199,2]
[361930764,1747897832827,-168.15519269,0.0001199,2]
[361930765,1747897832838,-500.0,0.0001199,2]
[361930766,1747897832848,-500.0,0.0001199,2]
[361930767,1747897832858,-500.0,0.0001199,2]
[361930768,1747897832869,-500.0,0.0001199,2]
[361930769,1747897832878,-472.61973961,0.0001199,2]
[361930771,1747897832888,-500.0,0.0001199,2]
[361930772,1747897832897,-500.0,0.0001199,2]
[361930774,1747897832907,-500.0,0.0001199,2]
[361930776,1747897832917,-423.84966456,0.0001199,2]
[361930780,1747897832949,-76.15033544,0.0001199,2]
[361930782,1747897832959,-500.0,0.0001199,2]
[361930784,1747897832969,-500.0,0.0001199,2]
[361930791,1747897833087,-500.0,0.0001199,2]
[361930792,1747897833098,-500.0,0.0001199,2]
[361930793,1747897833108,-500.0,0.0001199,2]
[361930794,1747897833118,-500.0,0.0001199,2]
[361930795,1747897833127,-500.0,0.0001199,2]
[361930796,1747897833137,-500.0,0.0001199,2]
[361930797,1747897833146,-500.0,0.0001199,2]
[361930798,1747897833156,-500.0,0.0001199,2]
[361930799,1747897833165,-500.0,0.0001199,2]
[361930800,1747897833175,-500.0,0.0001199,2]
[361930801,1747897833184,-500.0,0.0001199,2]
[361930802,1747897833194,-500.0,0.0001199,2]
[361930803,1747897833204,-500.0,0.0001199,2]
[361930804,1747897833215,-500.0,0.0001199,2]
[361930805,1747897833224,-500.0,0.0001199,2]
[361930806,1747897833234,-227.47868129,0.0001199,2]
[361930807,1747897833246,-611.80131871,0.0001199,2]
[361930808,1747897833256,-500.0,0.0001199,2]
[361930809,1747897833265,-500.0,0.0001199,2]
[361930810,1747897833275,-500.0,0.0001199,2]
[361930811,1747897833285,-500.0,0.0001199,2]
[361930812,1747897833295,-500.0,0.0001199,2]
[361930813,1747897833305,-650.0,0.0001199,2]
[361930814,1747897833314,-219.40560071,0.0001199,2]
[361930815,1747897833324,-219.40560071,0.0001199,2]
[361930816,1747897833334,-4965.13438136,0.00011991,2]
[361930817,1747897833357,-14662.34498423,0.00011991,2]
[361930818,1747897833591,745.63,0.00010999,2]
[361930820,1747897838410,-300.0,0.00011506,2]
[361930821,1747897838420,-1156.2075135,0.00011991,2]
[361930822,1747897838431,-251127.72052323,0.00011991,2]
[361930823,1747897838442,-423.82257099,0.00011991,2]
[361930824,1747897838455,-6583.24353229,0.00011991,2]
[361930825,1747897838478,-1988.42,0.00011991,2]
[361930826,1747897838489,-6036.74016914,0.00011991,2]
[361930827,1747897838500,-643.93154905,0.00011991,2]
[361930828,1747897838516,-3182.07901596,0.00011991,2]
[361930829,1747897838525,-8717.81824051,0.00011991,2]
[361930830,1747897838535,-209280.10274359,0.00011991,2]
[361930831,1747897838546,-5786.30309549,0.00011991,2]
[361930832,1747897838556,-27001.50824292,0.00011991,2]
[361930833,1747897838566,-2008.168,0.00011999,2]
[361930834,1747897838577,-171.983,0.00011999,2]
[361930835,1747897838586,-96195.12151293,0.00012,2]
[361930838,1747897838608,-775.44461026,0.00012,2]
[361930840,1747897838619,-254.35520314,0.00012,2]
[361931015,1747897840307,-342.108,0.00012,2]
[361931018,1747897840426,-9096.64373114,0.00012,2]
[361931019,1747897840438,-8947.21879473,0.00012,2]
[361931022,1747897840459,-8943.78386462,0.00012,2]
[361931024,1747897840470,-9077.54866152,0.00012,2]
[361931026,1747897840481,-8943.84023489,0.00012,2]
[361931028,1747897840492,-875.81996469,0.00012,2]
[361931030,1747897840504,-686.1,0.00012,2]
[361931033,1747897840515,-1202.799999,0.00012,2]
[361931046,1747897840637,-1557.36871708,0.00012,2]
[361931048,1747897840649,-3189450.95202908,0.00012,2]
[361931050,1747897840658,-734750.97094815,0.00012,2]
[361931052,1747897840668,-151.0,0.00012,2]
[361931054,1747897840678,-151.0,0.00012,2]
[361931056,1747897840687,-151.0,0.00012,2]
[361931058,1747897840696,-151.0,0.00012,2]
[361931060,1747897840706,-151.0,0.00012,2]
[361931062,1747897840716,-159.238714,0.00012,2]
[361931064,1747897840726,-151.0,0.00012,2]
[361931066,1747897840736,-151.0,0.00012,2]
[361931068,1747897840745,-151.0,0.00012,2]
[361931070,1747897840758,-301.488749,0.00012,2]
[361931072,1747897840767,-301.488749,0.00012,2]
[361931074,1747897840776,-2323.03817169,0.00012081,2]
[361931076,1747897840786,-184.86,0.0001209,2]
[361931078,1747897840795,-184.86,0.00012093,2]
[361931079,1747897840805,-184.86,0.00012096,2]
[361931081,1747897840814,-184.86,0.000121,2]
[361931083,1747897840825,-184.86,0.00012103,2]
[361931085,1747897840834,-184.86,0.00012106,2]
[361931087,1747897840846,-184.86,0.00012109,2]
[361931089,1747897840856,-184.86,0.00012112,2]
[361931091,1747897840865,-184.86,0.00012116,2]
[361931093,1747897840875,-184.86,0.00012119,2]
[361931095,1747897840886,-184.86,0.00012122,2]
[361931097,1747897840895,-184.86,0.00012125,2]
[361931099,1747897840905,-184.86,0.00012128,2]
[361931101,1747897840915,-184.86,0.00012131,2]
[361931103,1747897840924,-184.86,0.00012135,2]
[361931105,1747897840934,-184.86,0.00012138,2]
[361931107,1747897840943,-184.86,0.00012141,2]
[361931109,1747897840952,-184.86,0.00012144,2]
[361931111,1747897840962,-184.86,0.00012147,2]
[361931113,1747897840971,-184.86,0.00012151,2]
[361931115,1747897840980,-5872.60325404,0.00012203,2]
[361931117,1747897840990,-2323.03817169,0.00012271,2]
[361931119,1747897840999,-5872.60325404,0.00012436,2]
[361931121,1747897841008,-2323.03817169,0.0001246,2]
[361931123,1747897841018,-157.29,0.000125,2]
[361931125,1747897841027,-157.29,0.000125,2]
[361931127,1747897841036,-157.29,0.000125,2]
[361931129,1747897841046,-157.29,0.000125,2]
[361931131,1747897841055,-157.29,0.000125,2]
[361931133,1747897841064,-157.29,0.000125,2]
[361931135,1747897841073,-502.27405274,0.00012521,2]
[361931137,1747897841082,-500.95769355,0.00012521,2]
[361931139,1747897841091,-500.0,0.00012521,2]
[361931140,1747897841100,-500.0,0.00012521,2]
[361931143,1747897841110,-458.16541731,0.00012521,2]
[361931145,1747897841119,-500.0,0.00012521,2]
[361931147,1747897841128,-2323.03817169,0.0001265,2]
[361931149,1747897841138,-250.0,0.00012656,2]
[361931151,1747897841148,-250.0,0.00012656,2]
[361931153,1747897841158,-439.0,0.00012656,2]
[361931155,1747897841167,-5872.60325404,0.00012668,2]
[361931157,1747897841177,-2323.03817169,0.0001284,2]
[361931159,1747897841186,-301.0,0.000129,2]
[361931160,1747897841195,-5872.60325404,0.00012901,2]
[361931162,1747897841204,-300.15,0.00012928,2]
[361931164,1747897841213,-300.66,0.00012928,2]
[361931166,1747897841223,-304.31,0.00012928,2]
[361931168,1747897841232,-301.51,0.00012928,2]
[361931170,1747897841241,-301.52,0.0001293,2]
[361931172,1747897841250,-300.8,0.0001293,2]
[361931174,1747897841259,-301.15,0.0001293,2]
[361931176,1747897841268,-302.16,0.00012951,2]
[361931178,1747897841278,-304.75,0.00012951,2]
[361931180,1747897841287,-302.78,0.00012951,2]
[361931182,1747897841296,-305.97,0.00012951,2]
[361931184,1747897841305,-302.53,0.00012951,2]
[361931186,1747897841314,-301.21,0.00012953,2]
[361931188,1747897841323,-303.01,0.00012953,2]
[361931190,1747897841333,-301.35,0.00012973,2]
[361931192,1747897841343,-305.53,0.00012976,2]
[361931195,1747897841352,-305.1,0.00012976,2]
[361931196,1747897841361,-305.5,0.00012976,2]
[361931199,1747897841371,-303.97,0.00012976,2]
[361931200,1747897841380,-303.05,0.00013,2]
[361931202,1747897841389,-303.67,0.00013,2]
[361931204,1747897841398,-304.2,0.00013,2]
[361931206,1747897841407,-2323.03817169,0.0001303,2]
[361931209,1747897841418,-200.0,0.0001309,2]
[361931211,1747897841427,-5872.60325404,0.00013134,2]
[361931213,1747897841437,-200.0,0.0001317,2]
[361931215,1747897841446,-2323.03817169,0.00013219,2]
[361931217,1747897841455,-340.98,0.00013363,2]
[361931219,1747897841465,-5872.60325404,0.00013366,2]
[361931221,1747897841474,-8335.68235289,0.00013368,2]
[361931223,1747897841483,-1000.0,0.000135,2]
[361931225,1747897841491,-1000.0,0.0001354,2]
[361931226,1747897841501,-173835.75,0.0001354,2]
[361931228,1747897841510,-153.124614,0.0001354,2]
[361931231,1747897841520,-243.798934,0.0001354,2]
[361931233,1747897841530,-151.0,0.0001354,2]
[361931234,1747897841539,-151.0,0.0001354,2]
[361931236,1747897841548,-151.0,0.0001354,2]
[361931238,1747897841558,-151.0,0.0001354,2]
[361931241,1747897841567,-151.0,0.0001354,2]
[361931242,1747897841576,-5872.60325404,0.00013599,2]
[361931245,1747897841586,-6799.94,0.00013654,2]
[361931247,1747897841596,-537.33,0.00013679,2]
[361931248,1747897841606,-150.0,0.00013698,2]
[361931250,1747897841615,-5196.04,0.00013699,2]
[361931252,1747897841624,-5196.04,0.00013699,2]
[361931255,1747897841634,-5196.04,0.00013699,2]
[361931257,1747897841643,-5196.04,0.00013699,2]
[361931258,1747897841652,-5196.04,0.00013699,2]
[361931260,1747897841662,-5196.04,0.00013699,2]
[361931262,1747897841672,-5196.04,0.00013699,2]
[361931265,1747897841682,-5196.04,0.00013699,2]
[361931267,1747897841692,-5196.04,0.00013699,2]
[361931269,1747897841701,-5196.04,0.00013699,2]
[361931271,1747897841711,-5196.04,0.00013699,2]
[361931272,1747897841720,-5196.04,0.00013699,2]
[361931274,1747897841730,-5196.04,0.00013699,2]
[361931277,1747897841739,-5196.04,0.00013699,2]
[361931279,1747897841749,-5196.04,0.00013699,2]
[361931281,1747897841762,-5196.04,0.00013699,2]
[361931283,1747897841772,-5196.04,0.00013699,2]
[361931285,1747897841781,-5196.04,0.00013699,2]
[361931287,1747897841791,-5196.04,0.00013699,2]
[361931289,1747897841801,-5196.05247402,0.00013699,2]
[361931291,1747897841811,-151.13,0.00013699,2]
[361931293,1747897841821,-400.17,0.00013699,2]
[361931295,1747897841830,-200.0,0.00013699,2]
[361931297,1747897841842,-151.0,0.00013699,2]
[361931299,1747897841852,-151.0,0.00013699,2]
[361931301,1747897841862,-151.0,0.00013699,2]
[361931303,1747897841872,-151.0,0.00013699,2]
[361931305,1747897841881,-151.0,0.00013699,2]
[361931307,1747897841891,-1831.907705,0.00013699,2]
[361931309,1747897841900,-151.0,0.00013699,2]
[361931311,1747897841910,-604.979332,0.00013699,2]
[361931313,1747897841919,-604.979332,0.00013699,2]
[361931315,1747897841929,-151.0,0.00013699,2]
[361931317,1747897841939,-157.329265,0.00013699,2]
[361931319,1747897841949,-151.0,0.00013699,2]
[361931321,1747897841960,-151.0,0.00013699,2]
[361931323,1747897841969,-153.011598,0.00013699,2]
[361931325,1747897841979,-151.0,0.00013699,2]
[361931327,1747897841988,-193.179261,0.00013699,2]
[361931329,1747897841998,-301.488749,0.00013699,2]
[361931331,1747897842008,-301.488749,0.00013699,2]
[361931333,1747897842017,-200.0,0.00013753,2]
[361931335,1747897842027,-151.0,0.00013754,2]
[361931337,1747897842036,-340.98,0.00014847,2]
[361931339,1747897842045,-250.0,0.00015,2]
[361931341,1747897842055,-150.0,0.00015068,2]
[361931343,1747897842064,-1000.0,0.00015232,2]
[361931345,1747897842073,-567.05,0.00015497,2]
[361931347,1747897842083,-16261.73,0.00015616,2]
[361931349,1747897842092,-175.95584388,0.00015882,2]
[361931351,1747897842102,-537.33,0.00015943,2]
[361931353,1747897842111,-340.98,0.00016332,2]
[361931355,1747897842121,-286.58930007,0.00016438,2]
[361931357,1747897842130,-179.15,0.00016712,2]
[361931359,1747897842140,-1000.0,0.00016925,2]
[361931361,1747897842149,-3400.273,0.00017426,2]
[361931363,1747897842161,-3593.254,0.00017426,2]
[361931365,1747897842170,-760.899,0.00017426,2]
[361931367,1747897842180,-162.83,0.00017612,2]
[361931369,1747897842189,-210.23627957,0.000178,2]
[361931371,1747897842198,-340.98,0.00017817,2]
[361931373,1747897842208,-207.4,0.0001801,2]
[361931375,1747897842219,-151.0,0.0001801,2]
[361931377,1747897842228,-1199.20597015,0.0001801,2]
[361931379,1747897842238,-162.84380928,0.0001801,2]
[361931381,1747897842247,-668.65185757,0.0001801,2]
[361931383,1747897842257,-668.65185757,0.0001801,2]
[361931385,1747897842267,-151.0,0.0001801,2]
[361931387,1747897842276,-537.33,0.00018206,2]
[361931389,1747897842286,-210.23627953,0.000183,2]
[361931391,1747897842295,-151.0,0.00018558,2]
[361931393,1747897842306,-693.3919763,0.00018558,2]
[361931395,1747897842315,-1000.0,0.00018617,2]
[361931397,1747897842325,-154.1686952,0.00019106,2]
[361931399,1747897842335,-719.04747942,0.00019106,2]
[361931401,1747897842345,-215.0738,0.00019379,2]
[361931403,1747897842355,-632.20882859,0.00019379,2]
[361931405,1747897842364,-693.3919763,0.00019379,2]
[361931407,1747897842375,-156.587,0.00019379,2]
[361931409,1747897842384,-800.41173884,0.00019654,2]
[361931411,1747897842394,-175.95584388,0.00019863,2]
[361931413,1747897842404,-901.64365156,0.0001997,2]
[361931415,1747897842414,-167.64,0.0002,2]
[361931417,1747897842423,-151.13,0.00020187,2]
[361931419,1747897842434,-20280.03,0.000202,2]
[361931421,1747897842443,-1000.0,0.0002031,2]
[361931423,1747897842452,-537.33,0.0002047,2]
[361931425,1747897842463,-223.0315306,0.00020748,2]
[361931427,1747897842472,-775.48199163,0.00020748,2]
[361931430,1747897842482,-296.413,0.00020748,2]
[361931432,1747897842491,-1112.19,0.00021644,2]
[361931434,1747897842501,-300.32,0.00021708,2]
[361931436,1747897842510,-305.67,0.00021708,2]
[361931437,1747897842519,-231.28369723,0.00022117,2]
[361931439,1747897842529,-236.0,0.000224,5]
[361931441,1747897842538,-537.33,0.00022734,2]
[361931443,1747897842548,-202.0,0.00023068,2]
[361931445,1747897842558,-364.94503067,0.00023486,2]
[361931447,1747897842567,-210.23627953,0.000237,9]
[361931449,1747897842576,-165.5,0.00023836,2]
[361931451,1747897842586,-175.95584388,0.00023845,2]
[361931453,1747897842596,-151.0,0.00024174,7]
[361931455,1747897842606,-156.99747,0.00024174,7]
[361931458,1747897842617,-151.0,0.00024174,7]
[361931460,1747897842627,-151.0,0.00024174,7]
[361931462,1747897842636,-151.0,0.00024174,7]
[361931464,1747897842646,-29999.99,0.00024174,2]
[361931466,1747897842655,-157.29,0.0002479,2]
[361931468,1747897842665,-152.927465,0.000248,7]
[361931470,1747897842675,-151.0,0.000248,7]
[361931472,1747897842684,-251.171018,0.000248,7]
[361931474,1747897842693,-251.171018,0.000248,7]
[361931476,1747897842703,-151.0,0.000248,7]
[361931478,1747897842713,-151.0,0.000248,7]
[361931480,1747897842722,-151.0,0.000248,7]
[361931482,1747897842732,-156.80258,0.000248,7]
[361931484,1747897842741,-156.539426,0.000248,7]
[361931486,1747897842751,-217.216018,0.000248,7]
[361931488,1747897842764,-151.0,0.000248,7]
[361931490,1747897842773,-151.0,0.000248,7]
[361931491,1747897842783,-151.0,0.000248,7]
[361931492,1747897842792,-151.0,0.000248,7]
[361931493,1747897842802,-1831.907705,0.000248,7]
[361931494,1747897842813,-157.225024,0.000248,7]
[361931495,1747897842823,-604.979332,0.000248,7]
[361931496,1747897842834,-604.979332,0.000248,7]
[361931497,1747897842843,-151.0,0.000248,7]
[361931498,1747897842854,-151.0,0.000248,7]
[361931499,1747897842863,-151.0,0.000248,7]
[361931500,1747897842873,-165.55135,0.000248,7]
[361931501,1747897842883,-215114.355643,0.000248,2]
[361931502,1747897842894,-301.488749,0.000248,7]
[361931504,1747897842904,-301.488749,0.000248,7]
[361931506,1747897842913,-501.79879328,0.0002485,2]
[361931508,1747897842923,-501.57195654,0.0002485,2]
[361931510,1747897842933,-502.88943968,0.0002485,2]
[361931512,1747897842943,-500.77246438,0.0002485,2]
[361931559,1747897843258,-502.66965769,0.0002485,2]
[361931564,1747897843360,-500.0,0.0002487,2]
[361931567,1747897843376,-151.0,0.000249,7]
[361931569,1747897843386,-156.99373,0.000249,7]
[361931571,1747897843395,-158.172916,0.000249,7]
[361931573,1747897843405,-500.0,0.000249,2]
[361931575,1747897843415,-500.25863392,0.000249,2]
[361931577,1747897843424,-146116.06266497,0.000249,2]
[361931582,1747897843465,-1981.9999998,0.000249,2]
[361931691,1747897844413,-1076.61786541,0.000119,2]
[361931693,1747897844423,-151.0,0.00012656,2]
[361931695,1747897844433,-3946.85229923,0.000249,2]
[361931697,1747897844442,-537.33,0.00024998,2]
[361931699,1747897844452,-322.4467176,0.00025448,2]
[361931701,1747897844461,-202.0,0.00025909,6]
[361931703,1747897844471,-158.246478,0.000261,7]
[361931705,1747897844481,-500.0,0.00026125,2]
[361931707,1747897844490,-501.31481214,0.00026125,2]
[361931709,1747897844500,-500.35147654,0.00026125,2]
[361931711,1747897844510,-151.13,0.00026676,2]
[361931713,1747897844520,-151.0,0.00027,7]
[361931715,1747897844530,-537.33,0.00027262,2]
[361931717,1747897844539,-157.29,0.0002738,2]
[361931719,1747897844549,-219.40560071,0.0002738,2]
[361931721,1747897844558,-11200.85938037,0.0002739,2]
[361931723,1747897844570,-6516.077771,0.0002739,2]
[361931874,1747897846238,-151.0,0.00012,2]
[361931876,1747897846248,-2323.03817169,0.00013409,2]
[361931878,1747897846258,-151.0,0.0001354,2]
[361931880,1747897846268,-151.0,0.00024174,7]
[361931882,1747897846277,-151.0,0.000248,7]
[361931884,1747897846286,-6867.57183081,0.0002739,2]
[361931886,1747897846298,-2399.7,0.0002739,2]
[361931889,1747897846309,-1000.0,0.0002739,2]
[361932911,1747898089691,2024.83,0.00011981,5]
[361932918,1747898319238,150.0,0.00012,5]
[361932929,1747898826762,-219.61496095,0.000115,4]
[361932935,1747898828237,-246.80731843,0.000115,4]
[361932944,1747898891845,272.79,0.00025513,120]
[361932947,1747898954452,4061.55463834,0.0001,2]
[361932956,1747899031423,-33.57772062,0.000115,4]
[361932957,1747899031433,-200.0,0.0001155,2]
[361932958,1747899031442,-598.10425806,0.000116,4]
[361932959,1747899031454,-501.89574194,0.000116,4]
[361932960,1747899031463,-93.49479998,0.000117,4]
[361932961,1747899031486,-1606.50520002,0.000117,4]
[361932962,1747899031495,-200.0,0.000117,2]
[361932963,1747899031505,-2300.0,0.000118,4]
[361932964,1747899031514,-300.0,0.00011899,2]
[361932965,1747899031524,-466.53003843,0.00011899,2]
[361932966,1747899031536,-542.468985,0.00011899,2]
[361932967,1747899031548,-191.00097657,0.00011899,2]
[361932968,1747899031557,-2800.0,0.000119,4]
[361932969,1747899031566,-1144.58186358,0.000119,2]
[361932970,1747899031578,-1331.71328673,0.000119,2]
[361932971,1747899031587,-169.27127065,0.00011944,2]
[361932972,1747899031596,-2476.29515031,0.00011972,2]
[361932973,1747899031606,-501.24467292,0.00011973,2]
[361932974,1747899031615,-458.16541731,0.00011973,2]
[361932975,1747899031626,-79.36725833,0.00011973,2]
[361932976,1747899031637,-420.63274167,0.00011973,2]
[361932977,1747899031647,-500.0,0.00011973,2]
[361932978,1747899031656,-280.43518902,0.00011973,2]
[361932979,1747899031666,-501.58855612,0.00011973,2]
[361932980,1747899031675,-500.0,0.00011973,2]
[361932981,1747899031685,-200.0,0.0001199,2]
[361932982,1747899031694,-250.0,0.0001199,2]
[361932983,1747899031704,-171.57171885,0.00011999,2]
[361932984,1747899031714,-500.0,0.00011999,2]
[361932985,1747899031723,-500.0,0.00011999,2]
[361932986,1747899031733,-500.0,0.00011999,2]
[361932987,1747899031742,-125.77179435,0.00011999,2]
[361932988,1747899031754,-374.22820565,0.00011999,2]
[361932989,1747899031764,-500.0,0.00011999,2]
[361932990,1747899031773,-500.0,0.00011999,2]
[361932991,1747899031782,-500.0,0.00011999,2]
[361932992,1747899031792,-562.25702395,0.00011999,2]
[361932993,1747899031801,-500.0,0.00011999,2]
[361932994,1747899031810,-500.0,0.00011999,2]
[361932995,1747899031820,-500.0,0.00011999,2]
[361932996,1747899031829,-500.0,0.00011999,2]
[361932997,1747899031839,-500.0,0.00011999,2]
[361932998,1747899031849,-500.0,0.00011999,2]
[361932999,1747899031859,-300.0,0.00011999,2]
[361933000,1747899031869,-152.988062,0.00012,2]
[361933001,1747899031878,-242.514026,0.00012,2]
[361933002,1747899031889,-40930.83249177,0.00012,2]
[361933005,1747899031902,-7538.41011593,0.00012,2]
[361933008,1747899031915,-10622.16061818,0.00012,2]
[361933011,1747899031928,-1091.65558616,0.00012,2]
[361933014,1747899031940,-372.51000098,0.00012,2]
[361933017,1747899031953,-422.27161926,0.00012,2]
[361933019,1747899031966,-450.071656,0.00012,2]
[361933022,1747899031979,-504.42,0.00012,2]
[361933024,1747899031990,-1399.93190357,0.00012,2]
[361933027,1747899032009,-331.46397035,0.00012,2]
[361933029,1747899032020,-3317.7328752,0.00012,2]
[361933031,1747899032031,-298.695,0.00012,2]
[361933034,1747899032049,-2840.47319302,0.00012,2]
[361933036,1747899032061,-711.3400304,0.00012,2]
[361933039,1747899032072,-310.07538915,0.00012,2]
[361933042,1747899032095,-11355.69533599,0.00012,2]
[361933560,1747899037454,-36663.79741104,0.00012,2]
[361933562,1747899037466,-191572.27947677,0.00012,2]
[361933566,1747899037494,-1632.98765464,0.00012,2]
[361933571,1747899037530,-419.229999,0.00012,2]
[361933576,1747899037565,-24320.93180846,0.00012,2]
[361933599,1747899037784,-177075.16756676,0.00012,2]
[361933794,1747899039949,-487.45,0.00012,2]
[361933797,1747899039964,-22959.08672348,0.00012,2]
[361933799,1747899039976,-3841524.17820915,0.00012,2]
[361933801,1747899039986,-930337.61248273,0.00012,2]
[361933803,1747899039995,-1939.33470368,0.00012044,2]
[361933809,1747899040049,-536.96044663,0.00012044,2]
[361933811,1747899040059,-1673.76066303,0.00012117,2]
[361933813,1747899040071,-802.53448728,0.00012117,2]
[361933815,1747899040080,-2476.29515031,0.00012189,2]
[361933817,1747899040090,-2476.29515031,0.00012261,2]
[361933819,1747899040100,-2476.29515031,0.00012333,2]
[361933821,1747899040109,-2476.29515031,0.00012406,2]
[361933823,1747899040119,-2476.29515031,0.00012478,2]
[361933825,1747899040129,-157.29,0.000125,2]
[361933827,1747899040140,-157.29,0.000125,2]
[361933829,1747899040150,-157.29,0.000125,2]
[361933831,1747899040163,-157.29,0.000125,2]
[361933833,1747899040172,-157.29,0.000125,2]
[361933882,1747899040628,-157.29,0.000125,2]
[361933885,1747899040652,-250.0,0.00012521,2]
[361933887,1747899040661,-500.0,0.00012521,2]
[361933889,1747899040671,-2476.29515031,0.0001255,2]
[361933891,1747899040681,-200.0,0.0001265,2]
[361933893,1747899040690,-250.0,0.0001265,2]
[361933895,1747899040700,-4110.8222779,0.00013071,2]
[361933897,1747899040709,-158.52461688,0.00013071,2]
[361933899,1747899040719,-439.0,0.00013089,2]
[361933901,1747899040729,-200.0,0.00013179,2]
[361933903,1747899040738,-250.0,0.00013179,2]
[361933905,1747899040747,-8335.68235289,0.00013368,2]
[361933907,1747899040757,-1000.0,0.000135,2]
[361933909,1747899040767,-151.43,0.00013699,2]
[361933911,1747899040777,-400.17,0.00013699,2]
[361933913,1747899040786,-500.0,0.00013699,2]
[361933915,1747899040796,-500.0,0.00013699,2]
[361933917,1747899040806,-4110.82227782,0.00014651,2]
[361933919,1747899040816,-250.0,0.00015195,2]
[361933921,1747899040825,-151.0,0.0001533,2]
[361933923,1747899040835,-4110.82227782,0.00016231,2]
[361933925,1747899040845,-272.79,0.00017009,2]
[361933927,1747899040854,-95200.16599102,0.000174,2]
[361933929,1747899040864,-204.96922566,0.000175,2]
[361933931,1747899040873,-204.9692255,0.000175,2]
[361933933,1747899040883,-204.9692255,0.000175,2]
[361933935,1747899040893,-204.9692255,0.000175,2]
[361933937,1747899040903,-250.0,0.00017515,2]
[361933939,1747899040913,-162.83,0.00017625,2]
[361933940,1747899040923,-4110.82227782,0.0001781,2]
[361933942,1747899040932,-207.4,0.0001801,2]
[361933944,1747899040942,-204.9692255,0.00018253,2]
[361933946,1747899040952,-3400.273,0.00019024,2]
[361933948,1747899040962,-3593.254,0.00019024,2]
[361933950,1747899040972,-760.899,0.00019024,2]
[361933952,1747899040981,-272.79,0.00019135,2]
[361933954,1747899040991,-215.0738,0.00019379,2]
[361933956,1747899041001,-4110.82227782,0.0001939,2]
[361933958,1747899041011,-204.9692255,0.00019841,2]
[361933960,1747899041020,-151.43,0.00020548,2]
[361933962,1747899041030,-20558.94,0.000206,2]
[361933964,1747899041039,-223.0315306,0.00020748,2]